bitfinex/quotes_SOLUSD_20220227
["timestamp","ask_amount","ask_price","bid_price","bid_amount"]
[1645963327132,33.98775188,91.0,90.933,110.2]
[1645963327337,1.6146857,91.027,90.933,110.2]
[1645963327533,4.397,91.055,90.933,110.2]
[1645963327534,5.9909394,91.055,90.935,110.2]
[1645963327733,5.9909394,91.055,90.934,54.51703253]
[1645963327734,5.9909394,91.055,90.937,110.2]
[1645963328134,5.9909394,91.055,90.938,2.74678921]
[1645963328335,89.15687618,91.054,90.96,16.4885]
[1645963328538,6.17446252,91.053,90.96,16.4885]
[1645963329739,16.4915,91.05,90.96,16.4885]
[1645963329940,4.394,91.049,90.96,16.4885]
[1645963330139,6.13212612,91.049,90.96,16.4885]
[1645963331145,6.13212612,91.049,90.94,16.4919]
[1645963331146,1.48493212,91.047,90.94,16.4919]
[1645963331340,4.394,91.046,90.94,16.4919]
[1645963332444,1.48493212,91.047,90.94,16.4919]
[1645963332644,4.394,91.046,90.94,16.4919]
[1645963332845,1.48493212,91.047,90.94,16.4919]
[1645963333044,4.394,91.046,90.94,16.4919]
[1645963333446,6.00609766,91.046,90.94,16.4919]
[1645963333647,1.61209766,91.046,90.94,16.4919]
[1645963335246,1.61209766,91.046,90.936,47.5061]
[1645963335446,1.79407754,91.053,90.942,110.2]
[1645963335646,40.64917618,91.054,90.943,2.5231897]
[1645963335847,40.64917618,91.054,90.943,37.0980743]
[1645963336046,40.64917618,91.054,90.944,112.99418464]
[1645963336249,40.64917618,91.054,90.971,110.2]
[1645963336447,1.51724796,91.087,91.0,16.4813]
[1645963336648,1.42551567,91.101,91.001,110.2]
[1645963336947,1.42551567,91.101,90.992,110.2]
[1645963337147,5.81851567,91.101,90.993,24.2122]
[1645963337347,41.15615077,91.1,90.993,24.2122]
[1645963337551,1.39154725,91.099,90.993,24.2122]
[1645963337747,4.393,91.098,90.972,48.9982]
[1645963337945,110.2,91.097,90.972,48.9982]
[1645963338145,110.2,91.095,90.972,48.9982]
[1645963338347,110.2,91.093,90.972,48.9982]
[1645963338645,1.3776544,91.09,90.972,48.9982]
[1645963338850,4.394,91.089,90.972,48.9982]
[1645963339047,110.2,91.088,90.972,48.9982]
[1645963339247,110.2,91.085,90.972,48.9982]
[1645963339450,16.4885,91.08,90.972,48.9982]
[1645963339648,6.1889247,91.084,90.972,48.9982]
[1645963339649,1.78663232,91.078,90.973,24.621]
[1645963339851,4.394,91.077,90.973,24.621]
[1645963340250,1.68320188,91.084,90.973,24.621]
[1645963340452,4.394,91.083,90.973,24.621]
[1645963340851,110.2,91.082,90.973,24.621]
[1645963341054,110.2,91.069,90.973,24.621]
[1645963341251,4.394,91.068,90.973,24.621]
[1645963341454,110.2,91.066,90.973,24.621]
[1645963341651,110.2,91.064,90.973,24.621]
[1645963341851,110.2,91.062,90.95,16.4902]
[1645963342053,110.2,91.06,90.95,16.4902]
[1645963342252,39.20097916,91.067,90.95,16.4902]
[1645963342253,110.2,91.058,90.95,16.4902]
[1645963342452,110.2,91.056,90.95,16.4902]
[1645963342653,110.2,91.054,90.95,16.4902]
[1645963342854,154.45581683,91.053,90.95,16.4902]
[1645963343055,1.74518668,91.052,90.95,16.4902]
[1645963343255,4.394,91.051,90.95,16.4902]
[1645963343455,16.4916,91.05,90.95,16.4902]
[1645963343656,1.83210607,91.049,90.95,16.4902]
[1645963345258,1.83210607,91.049,90.961,110.2]
[1645963345857,1.83210607,91.049,90.951,2.74678921]
[1645963346461,1.83210607,91.049,90.97,16.4873]
[1645963346665,38.24915575,91.053,90.971,110.2]
[1645963346861,38.24915575,91.053,90.971,112.94678921]
[1645963347060,38.24915575,91.053,90.97,16.4873]
[1645963347283,38.24915575,91.053,90.972,2.74678921]
[1645963347485,38.24915575,91.053,90.97,16.4873]
[1645963348685,4.394,91.069,90.981,110.2]
[1645963348891,1.55555621,91.119,90.983,110.2]
[1645963349086,1.55555621,91.119,90.984,2.59850969]
[1645963349290,1.55555621,91.119,90.984,5.3452989]
[1645963349687,38.94690416,91.118,90.985,2.74678921]
[1645963349886,1.73101394,91.117,91.01,16.4796]
[1645963350088,1.73101394,91.117,91.011,23.434]
[1645963351391,4.392,91.116,91.012,23.2693]
[1645963352190,111.61173512,91.109,91.012,23.2693]
[1645963352391,4.392,91.108,91.012,23.2693]
[1645963353691,110.2,91.107,91.01,16.4796]
[1645963353892,4.2,91.16,90.98,54.9394]
[1645963353893,110.2,91.097,90.99,16.4832]
[1645963354091,4.393,91.096,90.99,16.4832]
[1645963354696,1.55360406,91.097,90.99,16.4832]
[1645963355093,4.393,91.096,90.99,16.4832]
[1645963355293,1.55360406,91.097,90.99,16.4832]
[1645963355497,16.4843,91.09,90.99,16.4832]
[1645963355696,1.50004079,91.089,90.99,16.4832]
[1645963356395,1.50004079,91.089,90.991,110.2]
[1645963356999,1.87266688,91.097,90.991,110.2]
[1645963357197,1.87266688,91.097,90.993,110.2]
[1645963357997,1.87266688,91.097,90.992,22.9231]
[1645963359401,112.07266688,91.097,90.992,22.9231]
[1645963359601,16.4845,91.09,90.992,22.9231]
[1645963359799,6.00433514,91.089,90.992,22.9231]
[1645963360401,1.61133514,91.089,90.992,22.9231]
[1645963360599,4.393,91.088,90.992,22.9231]
[1645963361000,1.61133514,91.089,90.992,22.9231]
[1645963361201,4.393,91.088,90.992,22.9231]
[1645963361400,1.61133514,91.089,90.992,22.9231]
[1645963362201,13.95535161,91.135,90.996,5.0]
[1645963362402,127.7631382,91.169,91.063,5.0]
[1645963362603,6.78,91.194,91.081,110.2]
[1645963362900,6.78,91.194,91.083,110.2]
[1645963363100,116.98,91.194,91.084,2.8699198]
[1645963363300,110.2,91.192,91.084,2.8699198]
[1645963363602,110.2,91.192,91.083,2.36002874]
[1645963363603,111.36939471,91.192,91.083,2.36002874]
[1645963363804,109.58925337,91.19,91.083,2.36002874]
[1645963364100,1.74053709,91.189,91.07,16.4704]
[1645963364302,113.97825337,91.188,91.071,2.59547616]
[1645963364504,1.39272262,91.187,91.071,2.59547616]
[1645963364702,4.389,91.186,91.071,2.59547616]
[1645963365003,109.58925337,91.185,91.071,2.59547616]
[1645963365205,109.58925337,91.183,91.071,2.59547616]
[1645963365402,145.52778891,91.179,91.071,2.59547616]
[1645963365603,109.58925337,91.177,91.052,2.76669682]
[1645963365802,109.58925337,91.175,91.052,2.76669682]
[1645963366003,4.39,91.174,91.052,2.76669682]
[1645963366206,109.58925337,91.175,91.052,2.76669682]
[1645963366604,2.74678921,91.173,91.052,2.76669682]
[1645963367504,2.74678921,91.173,91.06,16.4727]
[1645963367705,2.74678921,91.173,91.061,2.67267575]
[1645963367906,109.58925337,91.169,91.061,2.67267575]
[1645963368106,109.58925337,91.167,91.014,3.01917996]
[1645963368309,109.58925337,91.164,91.014,3.01917996]
[1645963368507,1.37652158,91.163,91.014,3.01917996]
[1645963368707,4.391,91.162,91.014,3.01917996]
[1645963368908,1.63201869,91.159,91.014,3.01917996]
[1645963369108,4.391,91.158,91.014,3.01917996]
[1645963369510,109.58925337,91.149,91.02,16.4787]
[1645963369709,109.58925337,91.147,91.021,2.71111402]
[1645963369908,4.391,91.146,91.021,2.71111402]
[1645963370108,109.58925337,91.145,91.013,2.76609491]
[1645963370310,1.62130509,91.144,91.013,2.76609491]
[1645963370513,4.391,91.143,91.013,2.76609491]
[1645963370910,109.58925337,91.139,91.03,16.4778]
[1645963371109,109.58925337,91.137,91.031,2.67634465]
[1645963371309,4.391,91.136,91.031,2.67634465]
[1645963371509,109.58925337,91.135,91.031,2.67634465]
[1645963371710,109.58925337,91.133,91.031,2.67634465]
[1645963372010,1.80325542,91.13,91.031,2.67634465]
[1645963372210,4.391,91.129,91.031,2.67634465]
[1645963372408,1.80325542,91.13,91.031,2.67634465]
[1645963372608,4.391,91.129,91.031,2.67634465]
[1645963373810,4.391,91.129,91.012,2.78797516]
[1645963374913,4.391,91.129,91.013,6.0]
[1645963376712,113.98025337,91.129,91.013,6.0]
[1645963377012,2.74678921,91.128,91.013,6.0]
[1645963377211,4.392,91.127,91.014,6.0]
[1645963377415,4.392,91.127,91.013,6.0]
[1645963377612,2.74678921,91.126,91.013,6.0]
[1645963377813,4.392,91.125,91.013,6.0]
[1645963378013,109.58925337,91.119,91.012,2.78797516]
[1645963378215,109.58925337,91.116,91.012,2.78797516]
[1645963378412,40.10747243,91.117,91.012,2.78797516]
[1645963378413,109.58925337,91.114,91.012,2.78797516]
[1645963378613,109.58925337,91.112,91.012,2.78797516]
[1645963379113,4.392,91.111,91.012,2.78797516]
[1645963379513,4.392,91.111,91.013,6.0]
[1645963380316,4.392,91.111,91.012,2.78797516]
[1645963380517,109.58925337,91.109,91.012,2.78797516]
[1645963380714,5.81903313,91.108,90.953,110.2]
[1645963380936,1.47724904,91.106,90.95,2.25911814]
[1645963381115,4.394,91.105,90.95,2.25911814]
[1645963381417,109.58925337,91.104,90.95,2.25911814]
[1645963381614,109.58925337,91.102,90.95,2.25911814]
[1645963381814,1.78061152,91.101,90.952,110.2]
[1645963382014,1.78061152,91.101,90.953,8.82441892]
[1645963382015,109.58925337,91.1,90.953,8.82441892]
[1645963382213,25.77612274,91.101,90.953,2.82441892]
[1645963382214,109.58925337,91.098,90.953,2.82441892]
[1645963382414,109.58925337,91.089,90.953,2.82441892]
[1645963382619,109.58925337,91.087,90.953,2.82441892]
[1645963382814,109.58925337,91.085,90.953,2.82441892]
[1645963383019,109.58925337,91.083,90.953,2.82441892]
[1645963383415,4.394,91.082,90.953,2.82441892]
[1645963383617,109.58925337,91.081,90.953,2.82441892]
[1645963383817,109.58925337,91.079,90.953,2.82441892]
[1645963384019,109.58925337,91.069,90.953,2.82441892]
[1645963384317,16.4922,91.07,90.954,6.0]
[1645963384518,0.15,91.628,90.954,6.0]
[1645963384519,2.74678921,91.068,90.973,5.51]
[1645963384717,1.59304499,91.199,90.975,110.2]
[1645963384718,46.7226,91.154,90.975,110.2]
[1645963384918,46.7226,91.154,90.977,110.2]
[1645963385122,46.7226,91.154,90.979,110.2]
[1645963385319,46.7226,91.154,90.981,110.2]
[1645963385521,110.2,91.152,90.983,110.2]
[1645963385720,110.2,91.152,90.986,2.98887285]
[1645963385920,114.592,91.152,90.988,110.2]
[1645963386120,110.2,91.152,90.99,110.2]
[1645963386319,34.76115547,91.153,90.992,110.2]
[1645963386520,110.2,91.152,91.04,16.4752]
[1645963386721,110.2,91.152,91.041,8.48300966]
[1645963386920,110.2,91.152,91.041,28.47641087]
[1645963387120,110.2,91.152,91.042,23.1044597]
[1645963387322,110.2,91.152,91.043,6.0]
[1645963387521,110.2,91.152,91.043,28.63217755]
[1645963387724,110.2,91.152,91.044,23.0894438]
[1645963387920,110.2,91.152,91.045,8.47854392]
[1645963388121,110.2,91.152,91.045,28.47194513]
[1645963388321,110.2,91.152,91.046,23.03192172]
[1645963388521,4.39,91.151,91.05,16.4732]
[1645963388722,4.39,91.151,91.051,2.96942132]
[1645963389121,16.4762,91.16,91.052,105.0]
[1645963389325,16.1853,91.27,91.093,5.51]
[1645963389521,16.2264,91.316,91.097,110.2]
[1645963389821,16.8389,91.317,91.113,5.0]
[1645963390022,4.385,91.344,91.116,2.46749598]
[1645963390225,39.25189982,91.31,91.121,110.2]
[1645963390425,37.92229253,91.31,91.124,2.36593189]
[1645963390622,4.385,91.309,91.127,2.87652021]
[1645963390824,4.385,91.309,91.13,2.61985081]
[1645963391022,37.92229253,91.31,91.133,2.44376405]
[1645963391221,4.384,91.309,91.136,2.69983748]
[1645963391425,37.92229253,91.31,91.138,110.2]
[1645963391620,37.92229253,91.31,91.137,6.25]
[1645963391621,37.92229253,91.31,91.151,110.2]
[1645963391821,37.92229253,91.31,91.153,110.2]
[1645963392022,4.384,91.309,91.155,110.2]
[1645963392232,37.92229253,91.31,91.157,110.2]
[1645963392424,37.92229253,91.31,91.159,110.2]
[1645963392722,37.92229253,91.31,91.16,9.07450764]
[1645963392924,37.92229253,91.31,91.161,2.38596358]
[1645963393122,37.92229253,91.31,91.162,6.0]
[1645963393322,37.92229253,91.31,91.162,88.01490965]
[1645963393530,4.384,91.309,91.19,16.4459]
[1645963393725,4.384,91.309,91.191,2.97608821]
[1645963393726,5.92929055,91.309,91.191,2.97608821]
[1645963393928,5.92929055,91.309,91.164,2.92214626]
[1645963394123,5.92929055,91.309,90.963,0.32304672]
[1645963394124,2.74678921,91.308,91.133,2.9449258]
[1645963394423,114.584,91.307,91.134,6.0]
[1645963394624,1.58761098,91.306,91.134,6.0]
[1645963394824,4.385,91.305,91.134,6.0]
[1645963395026,22.80030641,91.306,91.151,110.2]
[1645963395225,37.92229253,91.31,91.153,115.7]
[1645963395427,37.92229253,91.31,91.155,110.2]
[1645963395624,37.92229253,91.31,91.154,9.30909675]
[1645963395625,37.92229253,91.31,91.173,5.0]
[1645963395827,37.92229253,91.31,91.175,110.2]
[1645963396025,37.92229253,91.31,91.176,9.09606844]
[1645963396224,37.92229253,91.31,91.19,16.4416]
[1645963396425,37.92229253,91.31,91.191,9.05677632]
[1645963396825,37.92229253,91.31,91.191,6.0]
[1645963397025,37.92229253,91.31,91.191,18.91986729]
[1645963397229,37.92229253,91.31,91.192,8.77821084]
[1645963397627,37.92229253,91.31,91.193,18.91986729]
[1645963397829,37.92229253,91.31,91.108,7.0]
[1645963397830,37.92229253,91.31,91.194,2.98337736]
[1645963398032,116.14499119,91.309,91.16,2.72244442]
[1645963398231,1.77392026,91.308,91.161,6.0]
[1645963398430,4.384,91.307,91.162,6.0]
[1645963398632,4.384,91.307,91.161,6.0]
[1645963399232,16.4514,91.28,91.17,16.4514]
[1645963399431,46.50876478,91.279,91.171,2.52658426]
[1645963399634,110.2,91.278,91.171,2.52658426]
[1645963399831,110.2,91.276,91.171,2.52658426]
[1645963400130,4.384,91.275,91.171,2.52658426]
[1645963400332,110.2,91.274,91.171,2.52658426]
[1645963400536,110.2,91.259,91.171,2.52658426]
[1645963400731,110.2,91.256,91.16,2.9235102]
[1645963400930,4.385,91.255,91.16,2.9235102]
[1645963401735,36.74182976,91.257,91.16,2.9235102]
[1645963402535,36.74182976,91.257,91.16,19.3770102]
[1645963402735,36.74182976,91.257,91.159,23.544]
[1645963402736,36.74182976,91.257,91.161,2.32172912]
[1645963402937,36.74182976,91.257,91.162,8.59981422]
[1645963403140,36.74182976,91.257,91.163,3.06543008]
[1645963403650,36.74182976,91.257,91.17,16.4519]
[1645963403850,36.74182976,91.257,91.171,2.83213271]
[1645963410457,36.74182976,91.257,91.181,2.75575335]
[1645963413760,36.74182976,91.257,91.161,2.40527399]
[1645963416463,36.74182976,91.257,91.161,112.60527399]
[1645963416663,36.74182976,91.257,91.17,16.4521]
[1645963416863,36.74182976,91.257,91.171,8.54351296]
[1645963417064,36.74182976,91.257,91.171,6.0]
[1645963417265,36.74182976,91.257,91.166,6.0]
[1645963418063,36.74182976,91.257,91.165,3.01894638]
[1645963418264,36.74182976,91.257,91.16,2.59034419]
[1645963418466,36.74182976,91.257,91.18,16.4505]
[1645963418664,36.74182976,91.257,91.181,3.11572624]
[1645963418864,36.74182976,91.257,91.181,113.31572624]
[1645963419065,36.74182976,91.257,91.183,110.2]
[1645963419265,36.74182976,91.257,91.185,110.2]
[1645963419465,36.74182976,91.257,91.187,110.2]
[1645963419665,36.74182976,91.257,91.189,110.2]
[1645963419864,36.74182976,91.257,91.188,8.95412069]
[1645963419865,36.74182976,91.257,91.191,110.2]
[1645963420064,36.74182976,91.257,91.2,54.8103]
[1645963420265,36.74182976,91.257,91.201,8.4586182]
[1645963421369,36.74182976,91.257,91.21,16.4431]
[1645963421570,4.384,91.319,91.211,2.30140892]
[1645963421971,4.384,91.319,91.211,5.04819813]
[1645963422169,4.383,91.334,91.213,110.2]
[1645963422369,16.5136,91.344,91.214,119.10305292]
[1645963422571,43.87925859,91.309,91.215,2.55499381]
[1645963422770,43.87925859,91.309,91.217,110.2]
[1645963423069,43.87925859,91.309,91.219,110.2]
[1645963423270,43.87925859,91.309,91.221,110.2]
[1645963423474,4.382,91.369,91.231,110.2]
[1645963423771,4.382,91.369,91.234,2.2686872]
[1645963423971,4.382,91.369,91.237,2.55964429]
[1645963424171,4.382,91.369,91.24,2.92053358]
[1645963424372,16.4367,91.37,91.26,16.4344]
[1645963424671,37.2199475,91.309,91.261,2.89511246]
[1645963425071,16.4367,91.37,91.252,2.69194879]
[1645963425272,22.6906,91.374,91.252,2.69194879]
[1645963425471,22.6906,91.374,91.255,2.26423775]
[1645963425770,4.382,91.373,91.255,2.26423775]
[1645963426173,41.93821516,91.314,91.255,2.26423775]
[1645963426571,5.96218266,91.373,91.272,105.0]
[1645963426774,4.38,91.419,91.273,2.35718014]
[1645963426973,4.38,91.419,91.274,8.44106848]
[1645963427171,4.38,91.419,91.274,24.02990243]
[1645963427372,4.38,91.419,91.276,2.48201114]
[1645963427571,43.93293484,91.418,91.278,110.2]
[1645963427772,111.8992605,91.417,91.28,110.2]
[1645963427972,1.35960728,91.416,91.281,8.67316798]
[1645963428172,1.35960728,91.416,91.277,18.33562316]
[1645963428173,16.4293,91.41,91.301,2.9458425]
[1645963428373,4.378,91.409,91.301,2.9458425]
[1645963428573,1.53157378,91.409,91.301,2.9458425]
[1645963428777,6.1401144,91.408,91.301,2.9458425]
[1645963428975,16.4293,91.41,91.301,2.9458425]
[1645963429176,4.378,91.409,91.301,2.9458425]
[1645963429577,5.95185084,91.409,91.301,2.9458425]
[1645963429774,43.03167206,91.399,91.301,2.9458425]
[1645963429979,4.378,91.398,91.292,3.00688546]
[1645963430477,47.40967206,91.399,91.292,3.00688546]
[1645963430677,43.03167206,91.399,91.292,3.00688546]
[1645963431076,4.378,91.398,91.292,113.20688546]
[1645963431281,43.03167206,91.399,91.3,16.4289]
[1645963431476,43.03167206,91.399,91.301,2.72538006]
[1645963432078,43.03167206,91.399,91.295,3.0323305]
[1645963432282,43.03167206,91.399,91.297,110.2]
[1645963432578,43.03167206,91.399,91.298,8.4699858]
[1645963432778,43.03167206,91.399,91.298,6.0]
[1645963433479,43.03167206,91.399,91.31,16.4272]
[1645963433679,43.03167206,91.399,91.311,2.62924668]
[1645963434281,43.03167206,91.399,91.298,6.0]
[1645963435483,43.03167206,91.399,91.32,16.4253]
[1645963435681,43.03167206,91.399,91.321,2.57426772]
[1645963435882,43.03167206,91.399,91.298,6.0]
[1645963436486,43.03167206,91.399,91.3,16.4281]
[1645963436683,43.03167206,91.399,91.301,8.30539421]
[1645963437083,43.03167206,91.399,91.297,6.09]
[1645963437286,43.03167206,91.399,91.292,3.0294334]
[1645963437484,43.03167206,91.399,91.293,6.0]
[1645963438084,43.03167206,91.399,91.31,16.4263]
[1645963438383,43.03167206,91.399,91.292,2.362492]
[1645963438584,6.0663634,91.398,91.274,3.04435179]
[1645963438784,6.0663634,91.398,91.24,16.5378]
[1645963438785,4.378,91.378,91.24,16.5378]
[1645963438983,4.378,91.378,91.209,48.5111]
[1645963438984,110.2,91.376,91.244,2.93060322]
[1645963439187,16.4343,91.37,91.244,2.93060322]
[1645963439386,5.74543529,91.369,91.244,2.93060322]
[1645963439585,4.38,91.369,91.244,2.93060322]
[1645963439785,29.0306,91.375,91.244,2.93060322]
[1645963439987,1.42480144,91.374,91.244,2.93060322]
[1645963440187,110.2,91.372,91.244,2.93060322]
[1645963440385,110.2,91.37,91.244,2.93060322]
[1645963440585,44.63263689,91.349,91.251,3.09457282]
[1645963440985,4.381,91.348,91.251,3.09457282]
[1645963441586,114.581,91.348,91.251,3.09457282]
[1645963441788,4.381,91.348,91.251,3.09457282]
[1645963442488,44.63263689,91.349,91.251,3.09457282]
[1645963443590,44.63263689,91.349,91.251,113.29457282]
[1645963443792,44.63263689,91.349,91.26,16.4352]
[1645963443990,44.63263689,91.349,91.261,2.60288645]
[1645963446098,44.63263689,91.349,91.244,48.495]
[1645963446297,44.63263689,91.349,91.245,2.40227125]
[1645963447600,44.63263689,91.349,91.251,2.44877104]
[1645963455825,111.96135352,91.348,91.251,2.44877104]
[1645963456225,110.2,91.339,91.251,2.44877104]
[1645963456827,16.4394,91.34,91.251,2.44877104]
[1645963458728,110.2,91.339,91.251,2.44877104]
[1645963458928,110.2,91.329,91.245,2.83757621]
[1645963459228,110.2,91.327,91.218,2.53140049]
[1645963459428,4.382,91.326,91.218,2.53140049]
[1645963460027,16.4448,91.31,91.218,2.53140049]
[1645963460228,37.63494128,91.309,91.218,2.53140049]
[1645963460430,110.2,91.308,91.218,2.53140049]
[1645963460829,4.382,91.307,91.218,2.53140049]
[1645963461630,110.2,91.299,91.197,24.6649]
[1645963461829,110.2,91.297,91.168,3.10944268]
[1645963462030,1.66878757,91.296,91.168,3.10944268]
[1645963462230,110.2,91.293,91.168,3.10944268]
[1645963462433,110.2,91.291,91.168,3.10944268]
[1645963462631,110.2,91.289,91.168,3.10944268]
[1645963462833,110.2,91.287,91.168,3.10944268]
[1645963463032,110.2,91.285,91.168,3.10944268]
[1645963463231,110.2,91.283,91.168,3.10944268]
[1645963463431,110.2,91.281,91.168,3.10944268]
[1645963463633,110.2,91.277,91.155,3.07845789]
[1645963463832,110.2,91.275,91.155,3.07845789]
[1645963464032,110.2,91.273,91.145,2.99387048]
[1645963464332,110.2,91.271,91.145,2.99387048]
[1645963464531,48.75112923,91.277,91.15,16.4548]
[1645963464532,16.4556,91.25,91.15,16.4548]
[1645963464732,44.0861869,91.249,91.151,2.74541342]
[1645963465932,110.2,91.248,91.151,2.74541342]
[1645963466334,114.585,91.248,91.151,2.74541342]
[1645963466534,110.2,91.239,91.142,2.52381994]
[1645963466833,4.386,91.238,91.142,2.52381994]
[1645963467036,4.386,91.238,91.137,2.7535089]
[1645963467436,4.386,91.239,91.137,2.7535089]
[1645963467835,16.4609,91.24,91.137,2.7535089]
[1645963468034,6.05234997,91.239,91.137,2.7535089]
[1645963468633,110.2,91.238,91.137,2.7535089]
[1645963468834,4.386,91.237,91.137,2.7535089]
[1645963469335,4.386,91.239,91.137,2.7535089]
[1645963469939,16.4609,91.24,91.137,2.7535089]
[1645963470739,110.2,91.239,91.137,2.7535089]
[1645963471037,4.386,91.247,91.14,16.4579]
[1645963471237,24.4637,91.248,91.141,2.28803809]
[1645963471838,110.2,91.247,91.141,2.28803809]
[1645963472338,24.4637,91.248,91.141,2.28803809]
[1645963472541,24.4637,91.248,91.15,16.4561]
[1645963472740,24.4637,91.248,91.151,2.6501507]
[1645963473142,44.0861869,91.249,91.152,5.05703419]
[1645963473343,44.0861869,91.249,91.154,2.63253085]
[1645963473540,44.0861869,91.249,91.157,2.52276118]
[1645963473740,71.2185,91.31,91.181,3.0794361]
[1645963473940,110.2,91.309,91.181,3.0794361]
[1645963474141,4.383,91.308,91.183,3.01045391]
[1645963474341,110.2,91.299,91.183,3.01045391]
[1645963474543,4.383,91.298,91.183,3.01045391]
[1645963474743,110.2,91.297,91.184,23.3216]
[1645963475047,1.59422403,91.294,91.185,2.41792416]
[1645963475244,4.384,91.293,91.185,2.41792416]
[1645963475444,110.2,91.292,91.185,2.41792416]
[1645963475646,1.59265384,91.288,91.185,2.41792416]
[1645963475847,4.384,91.287,91.185,2.41792416]
[1645963476046,4.384,91.287,91.171,3.06528628]
[1645963476245,1.43870122,91.285,91.161,2.7237591]
[1645963476446,110.2,91.282,91.161,2.7237591]
[1645963476647,110.2,91.28,91.161,2.7237591]
[1645963476846,4.384,91.279,91.161,2.7237591]
[1645963477047,110.2,91.269,91.161,2.7237591]
[1645963477247,110.2,91.267,91.161,2.7237591]
[1645963477446,4.385,91.266,91.161,2.7237591]
[1645963477848,135.07972676,91.265,91.161,2.7237591]
[1645963478046,4.385,91.264,91.161,2.7237591]
[1645963478248,110.2,91.263,91.161,2.7237591]
[1645963478447,4.385,91.262,91.161,2.7237591]
[1645963478849,110.2,91.261,91.161,2.7237591]
[1645963479048,4.385,91.26,91.161,2.7237591]
[1645963479249,110.2,91.259,91.161,2.7237591]
[1645963479548,135.54252923,91.259,91.161,2.7237591]
[1645963479949,110.2,91.257,91.161,2.7237591]
[1645963480448,135.54252923,91.257,91.161,2.7237591]
[1645963480848,41.59306033,91.254,91.161,2.7237591]
[1645963481049,110.2,91.253,91.161,2.7237591]
[1645963481349,25.34252923,91.253,91.161,2.7237591]
[1645963481549,25.34252923,91.252,91.161,2.7237591]
[1645963483151,41.59306033,91.254,91.161,2.7237591]
[1645963483351,41.59306033,91.254,91.162,6.0]
[1645963483557,41.59306033,91.254,91.163,110.2]
[1645963483755,41.59306033,91.254,91.166,2.70934174]
[1645963483955,41.59306033,91.254,91.169,2.2586672]
[1645963484256,41.59306033,91.254,91.172,3.10419908]
[1645963484452,4.385,91.309,91.182,3.11152211]
[1645963484656,24.8623,91.31,91.185,3.00235082]
[1645963484853,24.8623,91.31,91.188,2.44578269]
[1645963485055,50.20482923,91.31,91.191,3.12208045]
[1645963485254,50.20482923,91.31,91.192,6.0]
[1645963485456,110.2,91.308,91.2,16.4464]
[1645963485654,110.2,91.308,91.201,22.9978]
[1645963485854,25.34252923,91.307,91.202,2.34232535]
[1645963486054,32.47231844,91.307,91.202,2.34232535]
[1645963486454,45.69593118,91.309,91.203,2.8713381]
[1645963486654,45.69593118,91.309,91.206,2.32977204]
[1645963486855,45.69593118,91.309,91.207,6.0]
[1645963487455,43.69593118,91.309,91.21,16.4452]
[1645963487655,43.69593118,91.309,91.211,2.9845887]
[1645963488458,43.69593118,91.309,91.208,110.2]
[1645963488658,43.69593118,91.309,91.21,110.2]
[1645963488862,43.69593118,91.309,91.211,8.89215406]
[1645963489560,43.69593118,91.309,91.221,3.06997118]
[1645963489961,43.69593118,91.309,91.215,2.33519805]
[1645963490161,43.69593118,91.309,91.217,2.51211645]
[1645963490361,43.69593118,91.309,91.219,110.2]
[1645963490564,43.69593118,91.309,91.231,113.10893596]
[1645963490761,43.69593118,91.309,91.23,16.4416]
[1645963490762,43.69593118,91.309,91.234,2.87429592]
[1645963491165,43.69593118,91.309,91.222,112.67278898]
[1645963491365,43.69593118,91.309,91.225,2.27550224]
[1645963491665,43.69593118,91.309,91.226,6.0]
[1645963492266,43.69593118,91.309,91.226,116.2]
[1645963492466,43.69593118,91.309,91.25,16.4382]
[1645963492667,43.69593118,91.309,91.251,2.58495425]
[1645963492866,2.74678921,91.308,91.251,2.58495425]
[1645963493068,2.74678921,91.308,91.229,2.46603139]
[1645963493689,2.74678921,91.308,91.23,16.4412]
[1645963493889,43.69593118,91.309,91.231,3.04461081]